fUST/lending_fUST_20260625
["ID","MTS","AMOUNT","RATE_DAILY","PERIOD"]
[426347659,1782326658000,500.0,0.00026112,60]
[426347654,1782326658000,500.0,0.00026112,60]
[426347649,1782326658000,500.0,0.00026112,60]
[426347680,1782326659000,254.51623024,0.00026112,60]
[426347674,1782326659000,500.0,0.00026112,60]
[426347670,1782326659000,500.0,0.00026112,60]
[426347665,1782326659000,500.0,0.00026112,60]
[426347726,1782326662000,500.0,0.00026112,60]
[426347721,1782326662000,500.0,0.00026112,60]
[426347715,1782326662000,500.0,0.00026112,60]
[426347710,1782326662000,500.0,0.00026112,60]
[426347731,1782326663000,500.0,0.00026112,60]
[426347742,1782326663000,500.0,0.00026112,60]
[426347736,1782326663000,500.0,0.00026112,60]
[426347752,1782326664000,500.0,0.00026112,60]
[426347757,1782326664000,500.0,0.00026112,60]
[426347747,1782326664000,500.0,0.00026112,60]
[426347763,1782326665000,500.0,0.00026112,60]
[426347765,1782326665000,502.78916689,0.00026112,60]
[426347780,1782326665000,500.0,0.00026112,60]
[426347774,1782326665000,500.0,0.00026112,60]
[426347769,1782326665000,500.0,0.00026112,60]
[426347790,1782326666000,150.04016499,0.00026112,60]
[426347785,1782326666000,500.0,0.00026112,60]
[426347813,1782326667000,500.0,0.00026112,60]
[426347808,1782326667000,528.86272721,0.00026112,60]
[426347800,1782326667000,500.0,0.00026112,60]
[426347818,1782326668000,500.0,0.00026112,60]
[426347829,1782326668000,500.0,0.00026112,60]
[426347823,1782326668000,500.0,0.00026112,60]
[426347834,1782326668000,500.0,0.00026112,60]
[426347836,1782326668000,731.01,0.00026112,60]
[426347830,1782326668000,731.01,0.00026112,60]
[426347853,1782326669000,731.01,0.00026112,60]
[426347851,1782326669000,500.0,0.00026112,60]
[426347846,1782326669000,500.0,0.00026112,60]
[426347840,1782326669000,500.0,0.00026112,60]
[426347869,1782326670000,500.0,0.00026112,60]
[426347864,1782326670000,500.0,0.00026112,60]
[426347859,1782326670000,500.0,0.00026112,60]
[426347858,1782326670000,731.01,0.00026112,60]
[426347876,1782326671000,500.0,0.00026112,60]
[426347881,1782326671000,509.33,0.00026112,60]
[426347905,1782326672000,731.01,0.00026112,60]
[426347922,1782326673000,731.01,0.00026112,60]
[426347919,1782326673000,500.0,0.00026112,60]
[426347915,1782326673000,731.01,0.00026112,60]
[426347911,1782326673000,731.01,0.00026112,60]
[426347925,1782326673000,500.0,0.00026112,60]
[426347931,1782326674000,500.0,0.00026112,60]
[426347935,1782326674000,731.01,0.00026112,60]
[426347928,1782326674000,731.01,0.00026112,60]
[426347941,1782326674000,731.01,0.00026112,60]
[426347944,1782326674000,500.0,0.00026112,60]
[426347948,1782326674000,731.01,0.00026112,60]
[426347938,1782326674000,500.0,0.00026112,60]
[426347969,1782326675000,213.71,0.00026112,60]
[426347970,1782326675000,500.0,0.00026112,60]
[426347965,1782326675000,500.0,0.00026112,60]
[426347963,1782326675000,731.01,0.00026112,60]
[426347961,1782326675000,500.0,0.00026112,60]
[426347957,1782326675000,500.0,0.00026112,60]
[426347955,1782326675000,731.01,0.00026112,60]
[426347950,1782326675000,500.0,0.00026112,60]
[426347972,1782326675000,731.01,0.00026112,60]
[426347976,1782326676000,500.0,0.00026112,60]
[426347977,1782326676000,731.01,0.00026112,60]
[426347982,1782326676000,500.0,0.00026112,60]
[426347989,1782326676000,500.0,0.00026112,60]
[426347984,1782326676000,731.01,0.00026112,60]
[426347990,1782326676000,731.01,0.00026112,60]
[426348013,1782326677000,500.0,0.00026112,60]
[426348009,1782326677000,500.0,0.00026112,60]
[426348003,1782326677000,731.01,0.00026112,60]
[426348002,1782326677000,500.0,0.00026112,60]
[426347997,1782326677000,731.01,0.00026112,60]
[426347995,1782326677000,500.0,0.00026112,60]
[426348017,1782326678000,731.01,0.00026112,60]
[426348020,1782326678000,500.0,0.00026112,60]
[426348025,1782326678000,731.01,0.00026112,60]
[426348029,1782326678000,500.0,0.00026112,60]
[426348035,1782326678000,731.01,0.00026112,60]
[426348038,1782326678000,509.37025303,0.00026112,60]
[426348040,1782326678000,500.0,0.00026112,60]
[426348043,1782326678000,731.16016432,0.00026112,60]
[426348033,1782326678000,168.52846646,0.00026112,60]
[426348047,1782326679000,224.33541844,0.00026112,60]
[426348097,1782326681000,501.47086299,0.00026112,60]
[426348089,1782326681000,500.0,0.00026112,60]
[426348170,1782326684000,500.0,0.00026112,60]
[426348164,1782326684000,500.0,0.00026112,60]
[426348157,1782326684000,500.0,0.00026112,60]
[426348180,1782326685000,500.0,0.00026112,60]
[426348173,1782326685000,500.0,0.00026112,60]
[426348175,1782326685000,500.0,0.00026112,60]
[426348188,1782326685000,500.0,0.00026112,60]
[426348184,1782326685000,500.0,0.00026112,60]
[426348203,1782326686000,194.72503733,0.00026112,60]
[426348197,1782326686000,500.0,0.00026112,60]
[426348286,1782326690000,520.70831838,0.00026112,60]
[426348338,1782326692000,517.47713372,0.00026112,60]
[426348321,1782326692000,504.72651145,0.00026112,60]
[426348387,1782326694000,500.0,0.00026112,60]
[426348379,1782326694000,506.40092623,0.00026112,60]
[426348374,1782326694000,500.0,0.00026112,60]
[426348366,1782326694000,500.0,0.00026112,60]
[426348401,1782326695000,542.6589787,0.00026112,60]
[426348394,1782326695000,513.7935062,0.00026112,60]
[426348507,1782326700000,527.90493735,0.00026112,60]
[426348518,1782326700000,502.70018473,0.00026112,60]
[426348513,1782326700000,524.20701063,0.00026112,60]
[426348510,1782326700000,500.0,0.00026112,60]
[426348559,1782326702000,1249.46,0.00026112,60]
[426348552,1782326702000,1249.46,0.00026112,60]
[426348582,1782326703000,1249.46,0.00026112,60]
[426348575,1782326703000,1249.46,0.00026112,60]
[426348566,1782326703000,548.76752014,0.00026112,60]
[426348568,1782326703000,1249.46,0.00026112,60]
[426348603,1782326704000,1249.46,0.00026112,60]
[426348596,1782326704000,1249.46,0.00026112,60]
[426348589,1782326704000,1249.46,0.00026112,60]
[426348610,1782326705000,1249.46,0.00026112,60]
[426348612,1782326705000,500.0,0.00026112,60]
[426348624,1782326705000,1249.46,0.00026112,60]
[426348631,1782326705000,1249.46,0.00026112,60]
[426348618,1782326705000,1249.46,0.00026112,60]
[426348651,1782326706000,1249.46,0.00026112,60]
[426348644,1782326706000,1249.46,0.00026112,60]
[426348638,1782326706000,1249.46,0.00026112,60]
[426348676,1782326707000,1249.46,0.00026112,60]
[426348669,1782326707000,1249.46,0.00026112,60]
[426348662,1782326707000,1249.46,0.00026112,60]
[426348694,1782326708000,1249.46,0.00026112,60]
[426348715,1782326709000,1249.46,0.00026112,60]
[426348707,1782326709000,1249.46,0.00026112,60]
[426348701,1782326709000,1249.46,0.00026112,60]
[426348721,1782326710000,1249.46,0.00026112,60]
[426348725,1782326710000,1249.6272248,0.00026112,60]
[426348735,1782326710000,534.7115788,0.00026112,60]
[426348727,1782326710000,500.0,0.00026112,60]
[426348783,1782326712000,500.0,0.00026112,60]
[426348781,1782326712000,510.12230422,0.00026112,60]
[426348797,1782326713000,500.0,0.00026112,60]
[426348789,1782326713000,500.0,0.00026112,60]
[426348829,1782326714000,584.71913947,0.00026112,60]
[426348826,1782326714000,500.0,0.00026112,60]
[426348824,1782326714000,396.47664484,0.00026112,60]
[426348817,1782326714000,500.0,0.00026112,60]
[426348810,1782326714000,500.0,0.00026112,60]
[426348841,1782326715000,500.0,0.00026112,60]
[426348834,1782326715000,500.0,0.00026112,60]
[426348854,1782326715000,515.42554991,0.00026112,60]
[426348856,1782326715000,500.0,0.00026112,60]
[426348847,1782326715000,500.0,0.00026112,60]
[426348877,1782326716000,500.0,0.00026112,60]
[426348870,1782326716000,500.0,0.00026112,60]
[426348863,1782326716000,500.0,0.00026112,60]
[426348884,1782326717000,500.0,0.00026112,60]
[426348891,1782326717000,500.0,0.00026112,60]
[426348897,1782326717000,500.0,0.00026112,60]
[426348899,1782326717000,500.0,0.00026112,60]
[426348902,1782326717000,511.318745,0.00026112,60]
[426348908,1782326717000,500.0,0.00026112,60]
[426348906,1782326717000,252.22520037,0.00026112,60]
[426348923,1782326718000,500.0,0.00026112,60]
[426348916,1782326718000,522.8016029,0.00026112,60]
[426348914,1782326718000,500.0,0.00026112,60]
[426348934,1782326719000,504.70921932,0.00026112,60]
[426348936,1782326719000,500.0,0.00026112,60]
[426348955,1782326719000,505.26721777,0.00026112,60]
[426348944,1782326719000,500.0,0.00026112,60]
[426348951,1782326719000,622.33227717,0.00026112,60]
[426348938,1782326719000,500.0,0.00026112,60]
[426348991,1782326721000,510.67931553,0.00026112,60]
[426348984,1782326721000,500.0,0.00026112,60]
[426349048,1782326724000,500.0,0.00026112,60]
[426349039,1782326724000,500.0,0.00026112,60]
[426349129,1782326729000,501.30095042,0.00026112,60]
[426349158,1782326730000,500.0,0.00026112,60]
[426349196,1782326732000,500.0,0.00026112,60]
[426349203,1782326733000,500.0,0.00026112,60]
[426349206,1782326733000,500.0,0.00026112,60]
[426349226,1782326733000,500.0,0.00026112,60]
[426349214,1782326733000,500.0,0.00026112,60]
[426349219,1782326733000,500.0,0.00026112,60]
[426349211,1782326733000,500.0,0.00026112,60]
[426349233,1782326734000,-183.939474,0.00025112,2]
[426349236,1782326734000,-3662.65254352,0.00026012,2]
[426349235,1782326734000,-1000.0,0.00025112,30]
[426349238,1782326734000,-661.74403108,0.00026111,2]
[426349242,1782326734000,-189.47503539,0.00026111,2]
[426349244,1782326734000,-661.74403108,0.00026111,2]
[426349245,1782326734000,-661.74403108,0.00026111,2]
[426349241,1782326734000,-661.74403108,0.00026111,2]
[426349240,1782326734000,-661.74403108,0.00026111,2]
[426349247,1782326734000,-661.74403108,0.00026111,2]
[426349252,1782326734000,-661.74403108,0.00026111,2]
[426349228,1782326734000,500.0,0.00026112,60]
[426349248,1782326734000,-661.74403108,0.00026111,2]
[426349250,1782326734000,-661.74403108,0.00026111,2]
[426349262,1782326734000,-661.74403108,0.00026111,2]
[426349264,1782326734000,-500.0,0.00026111,2]
[426349265,1782326734000,-661.74403108,0.00026111,2]
[426349261,1782326734000,-661.74403108,0.00026111,2]
[426349273,1782326734000,-661.74403108,0.00026111,2]
[426349258,1782326734000,-447.41768607,0.00026111,2]
[426349257,1782326734000,-465.33814853,0.00026111,2]
[426349255,1782326734000,-500.0,0.00026111,2]
[426349254,1782326734000,-661.74403108,0.00026111,2]
[426349251,1782326734000,-661.74403108,0.00026111,2]
[426349260,1782326734000,-661.74403108,0.00026111,2]
[426349294,1782326735000,-3662.6525435,0.00030107,2]
[426349296,1782326735000,-154.33698135,0.0003069,8]
[426349299,1782326735000,-184.21460828,0.00031101,2]
[426349297,1782326735000,-208.38720487,0.00031101,2]
[426349295,1782326735000,-154.3369815,0.00030137,2]
[426349301,1782326735000,-400.0,0.00031982,2]
[426349303,1782326735000,-176.85601954,0.00031982,2]
[426349307,1782326735000,-207.40933015,0.00031982,2]
[426349290,1782326735000,-173.468,0.00026112,12]
[426349300,1782326735000,-170.90568674,0.00031101,2]
[426349293,1782326735000,-3662.6525435,0.00028059,2]
[426349283,1782326735000,-670.01583148,0.00026111,2]
[426349291,1782326735000,-5000.0,0.00026112,30]
[426349287,1782326735000,-670.01583148,0.00026111,2]
[426349288,1782326735000,-670.01583148,0.00026111,2]
[426349284,1782326735000,-670.01583148,0.00026111,2]
[426349286,1782326735000,-670.01583148,0.00026111,2]
[426349281,1782326735000,-670.01583148,0.00026111,2]
[426349277,1782326735000,-661.74403108,0.00026111,2]
[426349278,1782326735000,-661.74403108,0.00026111,2]
[426349276,1782326735000,-661.74403108,0.00026111,2]
[426349280,1782326735000,-670.01583148,0.00026111,2]
[426349274,1782326735000,-661.74403108,0.00026111,2]
[426349292,1782326735000,-500.0,0.00026748,2]
[426349304,1782326735000,-190.6569641,0.00031982,2]
[426349305,1782326735000,-416.77440974,0.00031982,2]
[426349310,1782326735000,-341.81137349,0.00031982,2]
[426349341,1782326735000,-166.49197887,0.00032962,2]
[426349340,1782326735000,-161.62329887,0.00032962,2]
[426349338,1782326735000,-159.17469008,0.00032962,2]
[426349337,1782326735000,-504.74016913,0.00032962,2]
[426349333,1782326735000,-150.95397188,0.00032962,2]
[426349334,1782326735000,-162.70840049,0.00032962,2]
[426349336,1782326735000,-194.2125742,0.00032962,2]
[426349332,1782326735000,-157.04786444,0.00032962,2]
[426349330,1782326735000,-530.56805863,0.00032962,2]
[426349329,1782326735000,-512.71706023,0.0003257,2]
[426349327,1782326735000,-273.27088213,0.0003257,2]
[426349308,1782326735000,-368.42921655,0.00031982,2]
[426349323,1782326735000,-625.16161462,0.0003257,2]
[426349314,1782326735000,-154.33698135,0.00032349,13]
[426349312,1782326735000,-183.54,0.00032193,2]
[426349311,1782326735000,-3662.6525435,0.00032154,2]
[426349315,1782326735000,-353.71203909,0.0003257,2]
[426349318,1782326735000,-284.16507321,0.0003257,2]
[426349326,1782326735000,-552.64382483,0.0003257,2]
[426349316,1782326735000,-252.37008457,0.0003257,2]
[426349322,1782326735000,-430.19649285,0.0003257,2]
[426349320,1782326735000,-381.3139282,0.0003257,2]
[426349325,1782326735000,-414.81866029,0.0003257,2]
[426349319,1782326735000,-221.56954876,0.0003257,2]
[426349358,1782326736000,-178.55038588,0.00032962,2]
[426349374,1782326736000,-154.33698135,0.00035113,19]
[426349373,1782326736000,-1386.62665346,0.000351,30]
[426349369,1782326736000,-1196.33980721,0.00034822,2]
[426349367,1782326736000,-3662.6525435,0.00034202,2]
[426349370,1782326736000,-1386.62665347,0.000351,30]
[426349365,1782326736000,-153.87792411,0.00033907,10]
[426349360,1782326736000,-683.62274698,0.00032962,2]
[426349362,1782326736000,-1041.93602436,0.00033353,2]
[426349363,1782326736000,-854.52843372,0.00033353,2]
[426349359,1782326736000,-622.22799044,0.00032962,2]
[426349349,1782326736000,-185.93156411,0.00032962,2]
[426349355,1782326736000,-157.11696314,0.00032962,2]
[426349352,1782326736000,-154.04490635,0.00032962,2]
[426349351,1782326736000,-443.13909751,0.00032962,2]
[426349353,1782326736000,-215.09824642,0.00032962,2]
[426349372,1782326736000,-1386.62665346,0.000351,30]
[426349345,1782326736000,-568.33014641,0.00032962,2]
[426349348,1782326736000,-165.0707037,0.00032962,2]
[426349347,1782326736000,-194.1637273,0.00032962,2]
[426349344,1782326736000,-172.13292798,0.00032962,2]
[426349343,1782326736000,-157.02756477,0.00032962,2]
[426349356,1782326736000,-833.54881949,0.00032962,2]
[426349377,1782326736000,-204.278,0.00035547,30]
[426349366,1782326736000,-1025.43412046,0.00033941,2]
[426349378,1782326736000,-165.5499812,0.00035876,2]
[426349409,1782326736000,-1000.0,0.00037151,2]
[426349410,1782326736000,-1000.0,0.00037151,2]
[426349376,1782326736000,-348.0,0.00035296,30]
[426349406,1782326736000,-1000.0,0.00037151,2]
[426349405,1782326736000,-1000.0,0.00037151,2]
[426349403,1782326736000,-1000.0,0.00037151,2]
[426349401,1782326736000,-1000.0,0.00037151,2]
[426349402,1782326736000,-1000.0,0.00037151,2]
[426349399,1782326736000,-1000.0,0.00037151,2]
[426349398,1782326736000,-1000.0,0.00037151,2]
[426349393,1782326736000,-1000.0,0.00037151,2]
[426349396,1782326736000,-1000.0,0.00037151,2]
[426349408,1782326736000,-1000.0,0.00037151,2]
[426349392,1782326736000,-1000.0,0.00037151,2]
[426349395,1782326736000,-1000.0,0.00037151,2]
[426349381,1782326736000,-1367.24549395,0.00036144,2]
[426349380,1782326736000,-168.599341,0.00036,120]
[426349382,1782326736000,-3662.6525435,0.00036249,2]
[426349384,1782326736000,-158.79,0.00036766,3]
[426349388,1782326736000,-2907.805,0.00037052,2]
[426349389,1782326736000,-1041.82756132,0.00037054,9]
[426349386,1782326736000,-167.0,0.00037,120]
[426349391,1782326736000,-190.0,0.00037151,2]
[426349385,1782326736000,-260.43582478,0.00036855,7]
[426349437,1782326737000,507.37727176,0.00026112,60]
[426349426,1782326737000,-1000.0,0.00037151,2]
[426349435,1782326737000,500.0,0.00026112,60]
[426349434,1782326737000,500.0,0.00026112,60]
[426349432,1782326737000,500.0,0.00026112,60]
[426349430,1782326737000,-719.00458067,0.00037151,2]
[426349427,1782326737000,-1000.0,0.00037151,2]
[426349429,1782326737000,-1000.0,0.00037151,2]
[426349421,1782326737000,-1000.0,0.00037151,2]
[426349419,1782326737000,-1000.0,0.00037151,2]
[426349423,1782326737000,-1000.0,0.00037151,2]
[426349420,1782326737000,-1000.0,0.00037151,2]
[426349414,1782326737000,-1000.0,0.00037151,2]
[426349417,1782326737000,-1000.0,0.00037151,2]
[426349416,1782326737000,-1000.0,0.00037151,2]
[426349413,1782326737000,-1000.0,0.00037151,2]
[426349412,1782326737000,-1000.0,0.00037151,2]
[426349439,1782326737000,500.0,0.00026112,60]
[426349424,1782326737000,-1000.0,0.00037151,2]
[426349440,1782326737000,500.0,0.00026112,60]
[426349468,1782326737000,-1000.0,0.00037151,2]
[426349445,1782326737000,159.43622504,0.00026112,60]
[426349442,1782326737000,500.0,0.00026112,60]
[426349471,1782326737000,-153.0,0.00037151,120]
[426349469,1782326737000,-1046.93376091,0.00037151,2]
[426349466,1782326737000,-1000.0,0.00037151,2]
[426349461,1782326737000,-1000.0,0.00037151,2]
[426349464,1782326737000,-1000.0,0.00037151,2]
[426349462,1782326737000,-1000.0,0.00037151,2]
[426349458,1782326737000,-1000.0,0.00037151,2]
[426349457,1782326737000,-1000.0,0.00037151,2]
[426349465,1782326737000,-1000.0,0.00037151,2]
[426349456,1782326737000,-1000.0,0.00037151,2]
[426349453,1782326737000,-1000.0,0.00037151,2]
[426349454,1782326737000,-1000.0,0.00037151,2]
[426349451,1782326737000,-1000.0,0.00037151,2]
[426349450,1782326737000,-1000.0,0.00037151,2]
[426349447,1782326737000,-280.99541933,0.00037151,2]
[426349448,1782326737000,-1000.0,0.00037151,2]
[426349460,1782326737000,-1000.0,0.00037151,2]
[426349444,1782326737000,500.0,0.00026112,60]
[426349489,1782326738000,-174.10556,0.000394,2]
[426349493,1782326738000,-151.0,0.0004,16]
[426349492,1782326738000,-174.28,0.000398,120]
[426349494,1782326738000,-156.0,0.00040154,120]
[426349500,1782326738000,-1509.932594,0.00040319,2]
[426349496,1782326738000,-250.63071472,0.000402,120]
[426349499,1782326738000,-174.28,0.000403,120]
[426349490,1782326738000,-151.0,0.000397,12]
[426349497,1782326738000,-1194.92983876,0.00040244,30]
[426349485,1782326738000,-250.63071472,0.00039,120]
[426349473,1782326738000,-1538.1511807,0.00038127,2]
[426349488,1782326738000,-174.28,0.000393,120]
[426349486,1782326738000,-156.0,0.00039154,120]
[426349483,1782326738000,-173.68686449,0.00039,120]
[426349481,1782326738000,-174.28,0.000388,120]
[426349479,1782326738000,-174.28,0.000383,120]
[426349478,1782326738000,-3662.6525435,0.00038297,2]
[426349475,1782326738000,-153.0,0.00038151,120]
[426349476,1782326738000,-156.0,0.00038154,120]
[426349472,1782326738000,-156.0,0.00037154,120]
[426349501,1782326738000,-3662.6525435,0.00040344,28]
[426349482,1782326738000,-154.33698135,0.00038984,24]
[426349504,1782326738000,-661.74403108,0.00040443,31]
[426349535,1782326738000,-661.74403108,0.00040443,31]
[426349507,1782326738000,-661.74403108,0.00040443,31]
[426349503,1782326738000,-442.10841591,0.00040443,31]
[426349537,1782326738000,-661.74403108,0.00040443,31]
[426349534,1782326738000,-661.74403108,0.00040443,31]
[426349533,1782326738000,-160.82418734,0.00040443,31]
[426349531,1782326738000,-661.74403108,0.00040443,31]
[426349530,1782326738000,-661.74403108,0.00040443,31]
[426349527,1782326738000,-661.74403108,0.00040443,31]
[426349528,1782326738000,-661.74403108,0.00040443,31]
[426349526,1782326738000,-661.74403108,0.00040443,31]
[426349523,1782326738000,-661.74403108,0.00040443,31]
[426349524,1782326738000,-661.74403108,0.00040443,31]
[426349538,1782326738000,-661.74403108,0.00040443,31]
[426349520,1782326738000,-661.74403108,0.00040443,31]
[426349519,1782326738000,-661.74403108,0.00040443,31]
[426349517,1782326738000,-661.74403108,0.00040443,31]
[426349516,1782326738000,-661.74403108,0.00040443,31]
[426349514,1782326738000,-661.74403108,0.00040443,31]
[426349513,1782326738000,-661.74403108,0.00040443,31]
[426349510,1782326738000,-661.74403108,0.00040443,31]
[426349511,1782326738000,-661.74403108,0.00040443,31]
[426349509,1782326738000,-661.74403108,0.00040443,31]
[426349506,1782326738000,-661.74403108,0.00040443,31]
[426349521,1782326738000,-661.74403108,0.00040443,31]
[426349561,1782326739000,-661.74403108,0.00040443,31]
[426349556,1782326739000,-661.74403108,0.00040443,31]
[426349558,1782326739000,-661.74403108,0.00040443,31]
[426349565,1782326739000,-661.74403108,0.00040443,31]
[426349562,1782326739000,-661.74403108,0.00040443,31]
[426349563,1782326739000,-661.74403108,0.00040443,31]
[426349555,1782326739000,-661.74403108,0.00040443,31]
[426349559,1782326739000,-661.74403108,0.00040443,31]
[426349554,1782326739000,-661.74403108,0.00040443,31]
[426349547,1782326739000,-661.74403108,0.00040443,31]
[426349548,1782326739000,-661.74403108,0.00040443,31]
[426349552,1782326739000,-661.74403108,0.00040443,31]
[426349549,1782326739000,-661.74403108,0.00040443,31]
[426349544,1782326739000,-661.74403108,0.00040443,31]
[426349545,1782326739000,-661.74403108,0.00040443,31]
[426349542,1782326739000,-661.74403108,0.00040443,31]
[426349541,1782326739000,-661.74403108,0.00040443,31]
[426349540,1782326739000,-661.74403108,0.00040443,31]
[426349566,1782326739000,-661.74403108,0.00040443,31]
[426349551,1782326739000,-661.74403108,0.00040443,31]
[426349567,1782326739000,-661.74403108,0.00040443,31]
[426349574,1782326739000,-661.74403108,0.00040443,31]
[426349572,1782326739000,-661.74403108,0.00040443,31]
[426349600,1782326739000,-658.26116777,0.00040443,31]
[426349598,1782326739000,-658.26116777,0.00040443,31]
[426349569,1782326739000,-661.74403108,0.00040443,31]
[426349593,1782326739000,-658.26116777,0.00040443,31]
[426349594,1782326739000,-658.26116777,0.00040443,31]
[426349596,1782326739000,-658.26116777,0.00040443,31]
[426349588,1782326739000,-658.26116777,0.00040443,31]
[426349591,1782326739000,-658.26116777,0.00040443,31]
[426349590,1782326739000,-658.26116777,0.00040443,31]
[426349587,1782326739000,-658.26116777,0.00040443,31]
[426349597,1782326739000,-658.26116777,0.00040443,31]
[426349583,1782326739000,-658.26116777,0.00040443,31]
[426349584,1782326739000,-658.26116777,0.00040443,31]
[426349581,1782326739000,-658.26116777,0.00040443,31]
[426349580,1782326739000,-658.26116777,0.00040443,31]
[426349577,1782326739000,-661.74403108,0.00040443,31]
[426349579,1782326739000,-661.74403108,0.00040443,31]
[426349576,1782326739000,-661.74403108,0.00040443,31]
[426349573,1782326739000,-661.74403108,0.00040443,31]
[426349570,1782326739000,-661.74403108,0.00040443,31]
[426349585,1782326739000,-658.26116777,0.00040443,31]
[426349601,1782326740000,-658.26116777,0.00040443,31]
[426349603,1782326740000,-658.26116777,0.00040443,31]
[426349604,1782326740000,-658.26116777,0.00040443,31]
[426349605,1782326740000,-658.26116777,0.00040443,31]
[426349608,1782326740000,-97146.05772848,0.00040444,30]
[426349610,1782326740000,501.21798226,0.00026112,60]
[426349612,1782326740000,500.0,0.00026112,60]
[426349614,1782326740000,500.0,0.00026112,60]
[426349607,1782326740000,-670.01583142,0.00040443,31]
[426349655,1782326742000,501.82378282,0.00026112,60]
[426349692,1782326743000,554.08,0.00026112,60]
[426349688,1782326743000,500.0,0.00026112,60]
[426349679,1782326743000,500.0,0.00026112,60]
[426349696,1782326744000,506.89835666,0.00026112,60]
[426349700,1782326744000,554.08,0.00026112,60]
[426349708,1782326744000,554.08,0.00026112,60]
[426349706,1782326744000,503.13760683,0.00026112,60]
[426349714,1782326744000,554.08,0.00026112,60]
[426349734,1782326745000,554.08,0.00026112,60]
[426349728,1782326745000,554.08,0.00026112,60]
[426349721,1782326745000,554.08,0.00026112,60]
[426349742,1782326746000,554.08,0.00026112,60]
[426349751,1782326746000,506.29385716,0.00026112,60]
[426349749,1782326746000,554.08,0.00026112,60]
[426349766,1782326746000,554.08,0.00026112,60]
[426349762,1782326746000,516.93810313,0.00026112,60]
[426349759,1782326746000,507.66,0.00026112,60]
[426349752,1782326746000,507.66,0.00026112,60]
[426349794,1782326747000,507.66,0.00026112,60]
[426349790,1782326747000,554.08,0.00026112,60]
[426349785,1782326747000,507.66,0.00026112,60]
[426349782,1782326747000,554.08,0.00026112,60]
[426349777,1782326747000,507.66,0.00026112,60]
[426349773,1782326747000,554.08,0.00026112,60]
[426349769,1782326747000,507.66,0.00026112,60]
[426349798,1782326748000,554.08,0.00026112,60]
[426349801,1782326748000,507.66,0.00026112,60]
[426349806,1782326748000,554.08,0.00026112,60]
[426349821,1782326748000,554.08,0.00026112,60]
[426349814,1782326748000,554.08,0.00026112,60]
[426349817,1782326748000,507.66,0.00026112,60]
[426349810,1782326748000,507.66,0.00026112,60]
[426349828,1782326749000,554.08,0.00026112,60]
[426349825,1782326749000,507.66,0.00026112,60]
[426349832,1782326749000,507.66,0.00026112,60]
[426349837,1782326749000,554.08,0.00026112,60]
[426349839,1782326749000,500.0,0.00026112,60]
[426349841,1782326749000,507.66,0.00026112,60]
[426349847,1782326749000,500.0,0.00026112,60]
[426349846,1782326749000,554.08,0.00026112,60]
[426349856,1782326750000,507.66,0.00026112,60]
[426349857,1782326750000,500.0,0.00026112,60]
[426349853,1782326750000,554.08,0.00026112,60]
[426349866,1782326750000,500.0,0.00026112,60]
[426349870,1782326750000,507.66,0.00026112,60]